bitfinex/quotes_BTCUSD_20220303
["timestamp","ask_amount","ask_price","bid_price","bid_amount"]
[1646292879291,0.354938,43574.0,43569.0,0.54231705]
[1646292879493,0.357938,43574.0,43571.0,0.00017123]
[1646292880741,0.357938,43574.0,43569.0,0.3258161]
[1646292880940,0.354938,43574.0,43569.0,0.3258161]
[1646292881540,0.357938,43574.0,43569.0,0.3258161]
[1646292881739,0.357938,43574.0,43568.0,0.0011]
[1646292882741,0.354938,43574.0,43568.0,0.0011]
[1646292883144,0.354938,43574.0,43569.0,0.00018477]
[1646292883442,0.412372,43574.0,43569.0,0.00018477]
[1646292883643,0.354938,43572.0,43566.0,0.33278612]
[1646292883932,0.354938,43574.0,43565.0,0.25281577]
[1646292884333,0.00082317,43573.0,43565.0,0.25281577]
[1646292884933,0.00082317,43573.0,43565.0,0.19538477]
[1646292885535,0.354938,43572.0,43565.0,0.19538477]
[1646292885735,0.54759095,43572.0,43562.0,0.38296]
[1646292885936,0.54759095,43572.0,43562.0,0.13106]
[1646292886535,0.354938,43573.0,43562.0,0.13106]
[1646292887034,0.379938,43573.0,43562.0,0.13106]
[1646292887636,0.56555065,43573.0,43562.0,0.13106]
[1646292888038,0.56555065,43573.0,43565.0,0.00018478]
[1646292888441,0.56555065,43573.0,43565.0,0.05761578]
[1646292888637,0.379938,43573.0,43565.0,0.05761578]
[1646292889037,0.379938,43573.0,43565.0,0.057431]
[1646292889239,0.379938,43573.0,43567.0,0.00018478]
[1646292889638,0.55696064,43573.0,43567.0,0.00018478]
[1646292889841,0.379938,43573.0,43567.0,0.00018478]
[1646292890240,0.379938,43573.0,43565.0,0.057431]
[1646292890441,0.379938,43573.0,43567.0,0.00018478]
[1646292891043,0.354938,43568.0,43567.0,0.00018478]
[1646292891241,0.494938,43568.0,43567.0,0.00018478]
[1646292891495,0.494938,43568.0,43562.0,0.13106]
[1646292891697,0.354938,43569.0,43565.0,0.05760893]
[1646292892297,0.354938,43569.0,43565.0,0.00017993]
[1646292892695,0.354938,43569.0,43562.0,0.01256]
[1646292892895,0.354938,43569.0,43565.0,0.00017993]
[1646292893896,0.354938,43569.0,43562.0,0.01256]
[1646292894098,0.354938,43569.0,43565.0,0.00017993]
[1646292894397,0.51790034,43569.0,43565.0,0.00017993]
[1646292895001,0.51790034,43569.0,43562.0,0.01256]
[1646292895250,0.51790034,43569.0,43565.0,0.00017041]
[1646292895649,0.354938,43569.0,43565.0,0.00017041]
[1646292896251,0.354938,43569.0,43562.0,0.01256]
[1646292896449,0.354938,43569.0,43565.0,0.00016228]
[1646292896649,0.21887692,43567.0,43565.0,0.00016228]
[1646292896851,0.354938,43566.0,43565.0,0.00016228]
[1646292897449,0.354938,43566.0,43562.0,0.01256]
[1646292897652,0.354938,43566.0,43563.0,0.00016228]
[1646292897849,0.354938,43565.0,43563.0,0.00016228]
[1646292898051,0.354938,43569.0,43563.0,0.00016228]
[1646292898651,0.52761145,43569.0,43562.0,0.01256]
[1646292898889,0.52761145,43569.0,43564.0,0.00016305]
[1646292899891,0.52761145,43569.0,43562.0,0.01256]
[1646292899892,0.354938,43569.0,43562.0,0.01256]
[1646292900092,0.354938,43569.0,43564.0,0.00015796]
[1646292900995,0.354938,43569.0,43562.0,0.01256]
[1646292901191,0.354938,43569.0,43564.0,0.00015796]
[1646292902293,0.354938,43569.0,43562.0,0.01256]
[1646292902494,0.354938,43569.0,43564.0,0.00015806]
[1646292903338,0.354938,43569.0,43562.0,0.0011]
[1646292903538,0.354938,43569.0,43564.0,0.00015823]
[1646292904541,0.354938,43569.0,43562.0,0.0011]
[1646292904840,0.354938,43569.0,43564.0,0.00015823]
[1646292905741,0.354938,43569.0,43562.0,0.0011]
[1646292905941,0.354938,43569.0,43564.0,0.00015822]
[1646292907000,0.354938,43569.0,43562.0,0.0011]
[1646292907200,0.354938,43569.0,43564.0,0.0001582]
[1646292907798,1.0,43568.0,43562.0,0.000801]
[1646292908003,0.00082317,43570.0,43562.0,0.000801]
[1646292908303,0.00082317,43570.0,43566.0,0.377958]
[1646292908304,0.1529152,43567.0,43566.0,0.377958]
[1646292908500,0.00082317,43570.0,43566.0,0.54928707]
[1646292908702,0.00082317,43570.0,43569.0,0.41004582]
[1646292909001,0.00082317,43570.0,43569.0,0.74283194]
[1646292909301,0.00082317,43571.0,43569.0,0.74283194]
[1646292909502,0.00082317,43571.0,43570.0,0.33278612]
[1646292910545,0.00082317,43572.0,43570.0,0.33278612]
[1646292912139,0.00582317,43573.0,43568.0,0.41004582]
[1646292912344,0.354938,43572.0,43566.0,0.33278612]
[1646292912540,0.004,43572.0,43566.0,0.33278612]
[1646292913340,0.354938,43571.0,43566.0,0.33278612]
[1646292913543,0.004,43572.0,43566.0,0.33278612]
[1646292913741,0.354938,43571.0,43566.0,0.33278612]
[1646292914017,0.354938,43572.0,43566.0,0.33278612]
[1646292914416,0.354938,43572.0,43565.0,0.1212]
[1646292914617,0.05825817,43573.0,43563.0,0.54935099]
[1646292914817,0.354938,43572.0,43563.0,0.54935099]
[1646292915022,0.10415817,43573.0,43563.0,0.54935099]
[1646292915222,0.354938,43572.0,43563.0,0.54935099]
[1646292916123,0.04672317,43573.0,43563.0,0.54935099]
[1646292916520,0.21751693,43570.0,43563.0,0.54935099]
[1646292916720,0.00082317,43573.0,43563.0,0.54935099]
[1646292916923,0.00082317,43573.0,43563.0,0.60677899]
[1646292917520,0.354938,43572.0,43563.0,0.60677899]
[1646292917773,0.2290446,43571.0,43563.0,0.60677899]
[1646292918776,0.00082317,43574.0,43563.0,0.60677899]
[1646292918974,0.00082317,43572.0,43563.0,0.60677899]
[1646292919376,0.354938,43571.0,43563.0,0.60677899]
[1646292919575,0.01001517,43572.0,43563.0,0.60677899]
[1646292919777,0.21398708,43572.0,43563.0,0.60677899]
[1646292920478,0.21398708,43572.0,43563.0,0.54935099]
[1646292920479,0.354938,43571.0,43563.0,0.54935099]
[1646292921492,0.348738,43571.0,43563.0,0.54935099]
[1646292921892,0.355024,43572.0,43563.0,0.54935099]
[1646292922095,0.00082317,43572.0,43563.0,0.54935099]
[1646292923496,0.355024,43571.0,43563.0,0.54935099]
[1646292923695,0.355024,43572.0,43563.0,0.54935099]
[1646292924096,0.355024,43572.0,43563.0,0.33278612]
[1646292924297,0.355024,43572.0,43563.0,0.21656487]
[1646292924497,0.357024,43572.0,43563.0,0.54935099]
[1646292925541,0.20658002,43570.0,43563.0,0.54935099]
[1646292925741,0.355024,43569.0,43563.0,0.21656487]
[1646292926544,0.358024,43569.0,43563.0,0.21656487]
[1646292926741,0.358024,43569.0,43563.0,0.54935099]
[1646292926943,0.358024,43569.0,43563.0,0.21656487]
[1646292927444,0.20423221,43567.0,43563.0,0.21656487]
[1646292927644,0.355024,43566.0,43563.0,0.21656487]
[1646292928043,0.355024,43569.0,43563.0,0.21656487]
[1646292928896,0.52456963,43569.0,43562.0,0.00095921]
[1646292929198,0.355024,43567.0,43561.0,0.01105921]
[1646292929397,0.355024,43568.0,43563.0,0.21656487]
[1646292929795,0.355024,43567.0,43563.0,0.21656487]
[1646292929995,0.02582317,43570.0,43563.0,0.54935099]
[1646292930397,0.355024,43569.0,43563.0,0.54935099]
[1646292930598,0.00082317,43567.0,43563.0,0.21656487]
[1646292931198,0.355024,43566.0,43563.0,0.21656487]
[1646292932197,0.355024,43567.0,43563.0,0.21656487]
[1646292932685,0.00082317,43568.0,43561.0,0.01105921]
[1646292932882,0.355024,43567.0,43561.0,0.01105921]
[1646292933083,0.355024,43567.0,43563.0,0.21656487]
[1646292933383,0.17461823,43569.0,43563.0,0.21656487]
[1646292933585,0.355024,43568.0,43563.0,0.21656487]
[1646292936085,0.17461823,43569.0,43563.0,0.21656487]
[1646292936284,0.355024,43568.0,43563.0,0.21656487]
[1646292937602,0.355024,43568.0,43561.0,0.01105921]
[1646292937804,0.23205723,43569.0,43561.0,0.01105921]
[1646292937805,0.355024,43566.0,43561.0,0.01105921]
[1646292938003,0.355024,43564.0,43561.0,0.01105921]
[1646292938301,0.355024,43562.0,43561.0,0.01105921]
[1646292938501,0.400924,43562.0,43561.0,0.01105921]
[1646292940959,1.355024,43558.0,43546.0,0.44198095]
[1646292941164,1.355024,43558.0,43548.0,0.0011]
[1646292941165,0.355024,43556.0,43548.0,0.0011]
[1646292941357,0.0459,43555.0,43548.0,0.0011]
[1646292941567,0.27317774,43553.0,43549.0,0.0011]
[1646292941757,0.400924,43552.0,43549.0,0.0011]
[1646292942159,0.400924,43552.0,43549.0,0.00127352]
[1646292942357,0.057467,43551.0,43549.0,0.00127352]
[1646292942557,0.400924,43550.0,43549.0,0.00127352]
[1646292943157,0.400924,43550.0,43549.0,0.0011]
[1646292943358,0.0459,43550.0,43549.0,0.0011]
[1646292944407,0.0459,43550.0,43549.0,0.20042247]
[1646292945009,0.0459,43550.0,43548.0,0.0011]
[1646292945208,0.00082317,43551.0,43548.0,0.0011]
[1646292946015,0.00082317,43552.0,43551.0,0.006342]
[1646292946609,0.00282317,43552.0,43551.0,0.006342]
[1646292946813,0.00282317,43552.0,43551.0,0.23235563]
[1646292947413,0.002,43552.0,43551.0,0.23235563]
[1646292947647,0.002,43552.0,43551.0,0.20933563]
[1646292947948,0.00082317,43553.0,43551.0,0.20933563]
[1646292948348,0.00082317,43553.0,43552.0,0.21656487]
[1646292948548,0.00082317,43553.0,43552.0,0.41004582]
[1646292948750,0.00282317,43553.0,43552.0,0.41004582]
[1646292948947,0.00282317,43553.0,43552.0,0.21656487]
[1646292949151,0.002,43553.0,43552.0,0.21656487]
[1646292949550,0.002,43553.0,43551.0,0.21656487]
[1646292950051,0.00082317,43554.0,43550.0,0.00017075]
[1646292950249,0.00082317,43554.0,43551.0,0.41004582]
[1646292950652,0.00082317,43554.0,43552.0,0.19348095]
[1646292950653,0.002,43554.0,43552.0,0.19348095]
[1646292951908,0.00082317,43555.0,43552.0,0.19348095]
[1646292953394,0.00082317,43556.0,43551.0,0.00017071]
[1646292953795,0.00082317,43556.0,43548.0,0.0011]
[1646292953993,0.00082317,43556.0,43551.0,0.00016275]
[1646292954193,0.00082317,43556.0,43552.0,0.19348095]
[1646292954593,0.00382317,43556.0,43552.0,0.19348095]
[1646292954994,0.003,43556.0,43552.0,0.19348095]
[1646292955248,0.003,43556.0,43552.0,0.1936437]
[1646292955946,0.00082317,43557.0,43552.0,0.00016275]
[1646292956245,0.00082317,43557.0,43553.0,0.18815579]
[1646292957045,0.00082317,43557.0,43555.0,0.19348095]
[1646292957850,0.00082317,43558.0,43555.0,0.19348095]
[1646292958047,0.00082317,43558.0,43554.0,0.00015779]
[1646292958647,0.00382317,43558.0,43553.0,0.18815579]
[1646292958896,0.00382317,43558.0,43554.0,0.00015779]
[1646292959295,0.003,43558.0,43554.0,0.00015779]
[1646292959496,0.06045,43558.0,43554.0,0.00015779]
[1646292959897,0.003,43558.0,43553.0,0.18815579]
[1646292960096,0.003,43558.0,43554.0,0.00015793]
[1646292960695,0.00382317,43558.0,43554.0,0.00015793]
[1646292961098,0.00382317,43558.0,43553.0,0.38163674]
[1646292961298,0.00382317,43558.0,43554.0,0.00015809]
[1646292962097,0.00082317,43558.0,43554.0,0.00015809]
[1646292962300,0.00082317,43559.0,43553.0,0.38163674]
[1646292962502,0.00082317,43559.0,43558.0,0.19348095]
[1646292962764,0.00082317,43559.0,43558.0,0.19977095]
[1646292963764,0.00082317,43560.0,43559.0,0.35498]
[1646292964164,0.00082317,43560.0,43558.0,0.19348095]
[1646292964564,0.00082317,43560.0,43559.0,0.355024]
[1646292964764,0.00082317,43560.0,43558.0,0.19348095]
[1646292965565,0.00082317,43561.0,43558.0,0.19348095]
[1646292966915,0.002,43561.0,43558.0,0.19348095]
[1646292967518,0.05826817,43562.0,43558.0,0.19348095]
[1646292967722,0.00082317,43562.0,43558.0,0.19348095]
[1646292968020,0.00082317,43562.0,43554.0,0.1155]
[1646292968021,0.355024,43561.0,43554.0,0.19348095]
[1646292968220,0.355024,43561.0,43548.0,0.01256]
[1646292968221,0.355024,43561.0,43548.0,0.0011]
[1646292968424,0.003,43562.0,43558.0,0.00017874]
[1646292968620,0.21367938,43560.0,43558.0,0.00017874]
[1646292968820,0.355024,43559.0,43558.0,0.00017874]
[1646292969023,1.0,43558.0,43552.0,0.19348095]
[1646292969419,0.1529152,43557.0,43552.0,0.19348095]
[1646292969621,0.1529152,43557.0,43552.0,0.18848095]
[1646292969822,0.1529152,43557.0,43548.0,0.18324715]
[1646292970149,0.00082317,43559.0,43552.0,0.18848095]
[1646292970150,0.22878856,43555.0,43552.0,0.18848095]
[1646292970350,0.22878856,43555.0,43548.0,0.18324715]
[1646292970749,0.002,43557.0,43548.0,0.18324715]
[1646292970953,0.002,43557.0,43554.0,0.18848095]
[1646292971150,0.00082317,43556.0,43554.0,0.13278095]
[1646292972050,0.00082317,43556.0,43552.0,0.13278095]
[1646292972051,0.28013122,43556.0,43552.0,0.13278095]
[1646292972350,0.28013122,43556.0,43548.0,0.18324715]
[1646292972550,0.28330805,43556.0,43552.0,0.13278095]
[1646292973250,0.28330805,43556.0,43552.0,0.13295031]
[1646292973449,0.004,43556.0,43552.0,0.13295031]
[1646292973653,0.004,43556.0,43555.0,0.13278095]
[1646292973892,0.00082317,43557.0,43554.0,0.09722532]
[1646292974495,0.00282317,43557.0,43554.0,0.09722532]
[1646292974696,0.26819154,43557.0,43554.0,0.09722532]
[1646292975094,0.26819154,43557.0,43553.0,0.00017864]
[1646292975295,0.002,43557.0,43553.0,0.00017864]
[1646292975494,0.002,43557.0,43553.0,0.09722532]
[1646292975694,0.002,43557.0,43553.0,0.09740396]
[1646292976197,0.00082317,43558.0,43553.0,0.09740396]
[1646292976404,0.22039435,43556.0,43553.0,0.09740396]
[1646292976596,0.004,43557.0,43553.0,0.09722532]
[1646292976798,0.004,43557.0,43553.0,0.09640396]
[1646292977397,0.004,43557.0,43553.0,0.09540396]
[1646292977664,0.004,43557.0,43553.0,0.00017864]
[1646292977865,0.00082317,43559.0,43556.0,0.09522532]
[1646292978265,0.355024,43558.0,43556.0,0.09522532]
[1646292978465,0.359024,43559.0,43556.0,0.09522532]
[1646292979066,0.359024,43559.0,43554.0,0.09522532]
[1646292979265,0.26624582,43558.0,43555.0,0.00016452]
[1646292979466,0.22180018,43559.0,43555.0,0.00016452]
[1646292979666,0.22180018,43559.0,43555.0,0.09538984]
[1646292979867,0.21780018,43559.0,43555.0,0.09538984]
[1646292980268,0.21780018,43559.0,43555.0,0.09522532]
[1646292980471,0.28691372,43556.0,43555.0,0.00016452]
[1646292980668,0.05827017,43560.0,43555.0,0.00016452]
[1646292980866,0.355024,43559.0,43555.0,0.00016452]
[1646292981068,0.00082317,43557.0,43555.0,0.00016452]
[1646292981503,0.00082317,43557.0,43553.0,0.09522532]
[1646292981699,0.20990833,43556.0,43554.0,0.00015852]
[1646292982499,0.00082317,43557.0,43554.0,0.00015852]
[1646292982700,0.00082317,43557.0,43553.0,0.09522532]
[1646292982901,0.00082317,43557.0,43553.0,0.09538385]
[1646292983901,0.00082317,43557.0,43553.0,0.09522532]
[1646292984106,0.00082317,43557.0,43553.0,0.09538385]
[1646292984107,0.355024,43557.0,43553.0,0.09538385]
[1646292984903,0.355024,43556.0,43553.0,0.09538385]
[1646292985159,0.2158461,43557.0,43553.0,0.09522532]
[1646292985358,0.2158461,43557.0,43553.0,0.09538209]
[1646292986157,0.355024,43556.0,43553.0,0.09538209]
[1646292986359,0.355024,43556.0,43553.0,0.09522532]
[1646292986558,0.14,43554.0,43553.0,0.00015677]
[1646292987560,0.14,43554.0,43550.0,0.09522532]
[1646292987761,0.20619282,43556.0,43551.0,0.00015678]
[1646292988766,0.20619282,43556.0,43550.0,0.09522532]
[1646292989008,0.20619282,43556.0,43551.0,0.0001571]
[1646292989209,0.00082317,43557.0,43551.0,0.0001571]
[1646292989810,0.00082317,43557.0,43548.0,0.0011]
[1646292990010,0.00082317,43557.0,43552.0,0.0001571]
[1646292990210,0.21540413,43557.0,43552.0,0.0001571]
[1646292990611,0.21740413,43557.0,43552.0,0.0001571]
[1646292990813,0.14,43553.0,43552.0,0.0001571]
[1646292991009,0.14,43553.0,43548.0,0.0011]
[1646292991216,0.002,43557.0,43552.0,0.0001571]
[1646292991410,0.19183141,43555.0,43552.0,0.0001571]
[1646292991611,0.002,43557.0,43552.0,0.0001571]
[1646292992014,0.00082317,43554.0,43552.0,0.0001571]
[1646292992211,0.00082317,43554.0,43548.0,0.09632532]
[1646292992510,0.00082317,43554.0,43551.0,0.00015705]
[1646292992950,0.355024,43553.0,43551.0,0.00015705]
[1646292993152,0.68280826,43552.0,43551.0,0.00015705]
[1646292993552,0.68280826,43552.0,43541.0,0.09522532]
[1646292993553,0.90464346,43552.0,43541.0,0.09522532]
[1646292993753,0.378044,43551.0,43541.0,0.09522532]
[1646292993953,0.14,43547.0,43541.0,0.09522532]
[1646292994153,0.14,43543.0,43541.0,0.09522532]
[1646292994354,0.19870357,43544.0,43535.0,0.1184]
[1646292994355,0.355024,43541.0,43535.0,0.1184]
[1646292994752,0.400924,43541.0,43531.0,0.01]
[1646292995356,0.080502,43540.0,43531.0,0.01]
[1646292995651,0.400924,43539.0,43531.0,0.01]
[1646292996251,0.400924,43539.0,43533.0,0.00017854]
[1646292996252,0.16175011,43534.0,43533.0,0.00017854]
[1646292996503,0.355024,43534.0,43533.0,0.00017854]
[1646292997104,0.355024,43534.0,43531.0,0.01]
[1646292997305,0.355024,43533.0,43531.0,0.01017854]
[1646292997901,0.355024,43532.0,43531.0,0.01017854]
[1646292998506,0.355024,43532.0,43531.0,0.01]
[1646292998507,0.543924,43532.0,43531.0,0.01]
[1646292999104,0.7000366,43532.0,43531.0,0.01]
[1646292999706,0.76900937,43532.0,43531.0,0.01]
[1646292999905,0.76600937,43532.0,43531.0,0.01]
[1646293000462,0.88095533,43532.0,43531.0,0.01]
[1646293000662,0.67354736,43532.0,43531.0,0.01]
[1646293000865,0.86125455,43532.0,43531.0,0.01]
[1646293001262,0.70833935,43532.0,43531.0,0.01]
[1646293001464,0.86123593,43532.0,43531.0,0.01]
[1646293001665,0.70749756,43532.0,43531.0,0.01]
[1646293001863,0.84593276,43532.0,43531.0,0.01]
[1646293002063,0.84593276,43532.0,43531.0,0.00988098]
[1646293002064,0.69301756,43532.0,43531.0,0.00988098]
[1646293002266,0.84593276,43532.0,43531.0,0.00988098]
[1646293002563,0.69301756,43532.0,43531.0,0.00988098]
[1646293002763,0.84593276,43532.0,43531.0,0.00988098]
[1646293002964,0.69301756,43532.0,43531.0,0.00988098]
[1646293003163,0.84593276,43532.0,43531.0,0.00988098]
[1646293003362,0.69301756,43532.0,43531.0,0.00988098]
[1646293003564,0.84593276,43532.0,43531.0,0.00988098]
[1646293003764,0.69301756,43532.0,43531.0,0.00988098]
[1646293004007,0.84593276,43532.0,43531.0,0.00988098]
[1646293004206,0.69301756,43532.0,43531.0,0.00988098]
[1646293004406,0.84593276,43532.0,43531.0,0.00988098]
[1646293004608,0.69601756,43532.0,43531.0,0.00988098]
[1646293006508,0.69301756,43532.0,43531.0,0.00988098]
[1646293007752,1.0,43531.0,43523.0,0.07119729]
[1646293007955,0.400924,43530.0,43523.0,0.07119729]
[1646293008156,0.00082317,43525.0,43523.0,0.07119729]
[1646293008753,0.00082317,43525.0,43523.0,0.39632907]
[1646293009153,0.00082317,43525.0,43524.0,0.32513178]
[1646293009357,0.00082317,43525.0,43524.0,0.68015578]
[1646293009556,0.107478,43538.0,43524.0,1.40497578]
[1646293009557,0.00082317,43526.0,43524.0,1.40497578]
[1646293009758,0.00082317,43526.0,43525.0,0.35720829]
[1646293009954,0.00082317,43526.0,43525.0,0.47430558]
[1646293010357,0.00082317,43526.0,43525.0,0.70534622]
[1646293010956,0.00082317,43526.0,43525.0,0.69534622]
[1646293011156,0.00082317,43527.0,43525.0,0.69534622]
[1646293011404,0.00082317,43527.0,43526.0,0.70315878]
[1646293011709,0.00082317,43527.0,43526.0,0.74905878]
[1646293012710,0.00082317,43528.0,43527.0,0.006584]
[1646293012907,0.00082317,43528.0,43527.0,0.35473578]
[1646293013108,0.00082317,43528.0,43527.0,0.41593307]
[1646293014107,0.00082317,43529.0,43527.0,0.41593307]
[1646293014407,0.00082317,43529.0,43528.0,0.70314178]
[1646293015455,0.05,43538.0,43528.0,0.68012178]
[1646293015456,0.00082317,43530.0,43528.0,0.68012178]
[1646293015653,0.00082317,43530.0,43529.0,0.51524791]
[1646293015853,0.00082317,43530.0,43529.0,0.87027191]
[1646293016855,0.00082317,43531.0,43529.0,0.87027191]
[1646293017056,0.00082317,43531.0,43530.0,0.33166978]
[1646293017656,0.00082317,43531.0,43530.0,0.39286707]
[1646293018157,0.00082317,43531.0,43530.0,0.74135307]
[1646293018456,0.00082317,43532.0,43530.0,0.74135307]
[1646293018656,0.00082317,43532.0,43531.0,0.33165978]
[1646293020106,0.00082317,43533.0,43531.0,0.33165978]
[1646293020305,0.00082317,43533.0,43532.0,0.355024]
[1646293020507,0.00082317,43533.0,43532.0,0.38632907]
[1646293021505,0.01148,43542.0,43532.0,0.38632907]
[1646293021506,0.00082317,43534.0,43532.0,0.38632907]
[1646293021706,0.00082317,43534.0,43533.0,0.32513178]
[1646293022949,0.00017642,43537.0,43533.0,0.32513178]
[1646293022950,0.00082317,43535.0,43533.0,0.32513178]
[1646293023551,0.00082317,43535.0,43534.0,0.06119729]
[1646293023749,0.00082317,43535.0,43534.0,0.38632907]
[1646293024150,0.00082317,43535.0,43534.0,0.06119729]
[1646293024349,0.00082317,43535.0,43534.0,0.32513178]
[1646293024551,0.00082317,43536.0,43534.0,0.06119729]
[1646293024752,0.00082317,43536.0,43535.0,0.06119729]
[1646293025950,0.00082317,43536.0,43530.0,0.32513178]
[1646293026151,0.00082317,43537.0,43535.0,0.06119729]
[1646293027903,0.003,43537.0,43535.0,0.06119729]
[1646293028308,0.003,43537.0,43530.0,0.32513178]
[1646293029006,0.003,43537.0,43534.0,0.06119729]
[1646293029207,0.00099402,43538.0,43535.0,0.32513178]
[1646293029610,0.00082317,43538.0,43535.0,0.32513178]
[1646293029807,0.00082317,43538.0,43534.0,0.06119729]
[1646293030008,0.00082317,43538.0,43535.0,0.32513178]
[1646293030675,0.00082317,43538.0,43534.0,0.06119729]
[1646293030877,0.00082317,43539.0,43534.0,0.06119729]
[1646293031072,0.00099398,43539.0,43533.0,0.06119729]
[1646293031674,0.00099398,43539.0,43534.0,0.32513178]
[1646293031873,0.00099398,43539.0,43533.0,0.06119729]
[1646293032072,0.28372366,43539.0,43534.0,0.32513178]
[1646293032273,0.2830713,43539.0,43534.0,0.32513178]
[1646293032475,0.355024,43538.0,43533.0,0.06119729]
[1646293032672,0.2830713,43539.0,43533.0,0.06119729]
[1646293033073,0.2830713,43539.0,43534.0,0.32513178]
[1646293033274,0.28290049,43539.0,43534.0,0.32513178]
[1646293033576,8.866e-05,43534.0,43533.0,0.06119729]
[1646293035437,8.866e-05,43534.0,43530.0,0.32513178]
[1646293036038,0.00308866,43534.0,43530.0,0.32513178]
[1646293037039,0.00308866,43534.0,43533.0,0.06119729]
[1646293037238,8.866e-05,43534.0,43533.0,0.06119729]
[1646293037877,0.00308866,43534.0,43533.0,0.06119729]
[1646293038678,0.00308866,43534.0,43533.0,0.38622458]
[1646293039079,8.866e-05,43534.0,43533.0,0.38622458]
[1646293041181,8.866e-05,43534.0,43533.0,0.74124858]
[1646293041443,8.866e-05,43534.0,43533.0,0.81016858]
[1646293041636,8.866e-05,43534.0,43533.0,1.27673345]
[1646293042236,8.866e-05,43534.0,43533.0,1.49073464]
[1646293043939,8.866e-05,43534.0,43533.0,0.88714858]
[1646293044336,8.866e-05,43534.0,43533.0,0.5620168]
[1646293044737,8.866e-05,43534.0,43533.0,0.7120168]
[1646293044937,8.866e-05,43534.0,43533.0,1.03672658]
[1646293045182,8.866e-05,43534.0,43533.0,1.27631145]
[1646293047982,8.866e-05,43534.0,43533.0,0.95160167]
[1646293048781,8.866e-05,43534.0,43533.0,1.27645205]
[1646293049015,8.866e-05,43534.0,43533.0,1.12645205]
[1646293049217,8.866e-05,43534.0,43533.0,1.27645205]
[1646293050017,8.866e-05,43534.0,43533.0,1.97825205]
[1646293053865,8.866e-05,43534.0,43533.0,1.27645205]
[1646293054863,8.866e-05,43534.0,43533.0,1.97825205]
[1646293055265,8.866e-05,43534.0,43533.0,1.27645205]
[1646293055465,8.866e-05,43534.0,43533.0,0.95160167]
[1646293055665,8.866e-05,43534.0,43533.0,0.92858167]
[1646293055866,8.866e-05,43534.0,43533.0,0.5161168]
[1646293056066,8.866e-05,43534.0,43533.0,0.4161168]
[1646293056522,8.866e-05,43534.0,43533.0,0.0610928]
[1646293056924,8.866e-05,43534.0,43533.0,0.0675918]
[1646293057948,8.866e-05,43534.0,43533.0,0.0627918]
[1646293058126,0.00108866,43534.0,43533.0,0.0627918]
[1646293059328,8.866e-05,43534.0,43533.0,0.0627918]
[1646293060167,0.00508866,43534.0,43533.0,0.0627918]
[1646293060565,0.00508866,43534.0,43533.0,0.4113168]
[1646293060768,0.00508866,43534.0,43533.0,0.06259722]
[1646293061267,8.866e-05,43534.0,43533.0,0.387729]
[1646293061469,8.866e-05,43534.0,43533.0,0.38761983]
[1646293061867,8.866e-05,43534.0,43533.0,0.57585914]
[1646293062068,0.00108866,43534.0,43533.0,0.57585914]
[1646293063069,0.00108866,43534.0,43533.0,0.06248805]
[1646293063269,8.866e-05,43534.0,43533.0,0.06248805]
[1646293063468,8.866e-05,43534.0,43533.0,0.38761983]
[1646293063669,8.866e-05,43534.0,43533.0,0.41101305]
[1646293064119,8.866e-05,43534.0,43533.0,0.41001305]
[1646293064318,8.866e-05,43534.0,43533.0,0.73514483]
[1646293064621,8.866e-05,43534.0,43533.0,0.41001305]
[1646293066018,0.00108866,43534.0,43533.0,0.41001305]
[1646293067219,8.866e-05,43534.0,43533.0,0.41001305]
[1646293067421,8.866e-05,43534.0,43533.0,0.73514483]
[1646293068077,8.866e-05,43534.0,43533.0,0.41001305]
[1646293068678,8.866e-05,43534.0,43533.0,0.73514483]
[1646293070480,8.866e-05,43534.0,43533.0,0.05498905]
[1646293070682,8.866e-05,43534.0,43530.0,0.32513178]
[1646293070881,8.866e-05,43534.0,43533.0,0.05498905]
[1646293071281,8.866e-05,43534.0,43528.0,0.1167]
[1646293071515,8.866e-05,43534.0,43529.0,0.355024]
[1646293072119,8.866e-05,43534.0,43533.0,0.05498905]
[1646293072320,8.866e-05,43534.0,43529.0,0.355024]
[1646293072522,8.866e-05,43534.0,43533.0,0.05498905]
[1646293073819,8.866e-05,43534.0,43530.0,0.38012083]
[1646293074024,8.866e-05,43534.0,43531.0,0.355024]
[1646293074220,8.866e-05,43534.0,43532.0,0.05498905]
[1646293074419,8.866e-05,43534.0,43530.0,0.32513178]
[1646293074619,8.866e-05,43534.0,43531.0,0.355024]
[1646293074820,8.866e-05,43534.0,43530.0,0.05498905]
[1646293075021,8.866e-05,43534.0,43529.0,0.05498905]
[1646293075579,8.866e-05,43534.0,43530.0,0.67977672]
[1646293075775,8.866e-05,43534.0,43530.0,0.32513178]
[1646293075973,0.00208866,43534.0,43530.0,0.35509]
[1646293076176,0.00208866,43534.0,43529.0,0.05498905]
[1646293076573,0.00208866,43534.0,43530.0,0.35509]
[1646293076974,0.00208866,43534.0,43528.0,0.1167]
[1646293077173,0.05956766,43534.0,43528.0,0.1167]
[1646293077375,0.05756766,43534.0,43526.0,0.2726]
[1646293077574,0.11483544,43534.0,43525.0,0.1889]
[1646293077775,0.11483544,43534.0,43525.0,0.24388905]
[1646293077979,0.11883544,43534.0,43525.0,0.24388905]
[1646293078173,0.11965861,43534.0,43525.0,0.24388905]
[1646293078374,0.057482,43533.0,43525.0,0.24388905]
[1646293078573,0.057482,43533.0,43525.0,0.05498905]
[1646293078574,0.05736368,43533.0,43525.0,0.05498905]
[1646293078775,0.18886184,43532.0,43525.0,0.05498905]
[1646293079013,0.05736368,43533.0,43526.0,0.05498905]
[1646293079215,0.05736368,43533.0,43522.0,0.35509]
[1646293079515,0.05818685,43533.0,43521.0,0.47982648]
[1646293079716,0.05818685,43533.0,43522.0,0.05498905]
[1646293079913,0.22034241,43533.0,43525.0,0.05498905]
[1646293080316,0.22034241,43533.0,43522.0,0.05498905]
[1646293080522,0.22034241,43533.0,43521.0,0.47982684]
[1646293080719,0.22034241,43533.0,43522.0,0.05498905]
[1646293081216,0.22034241,43533.0,43521.0,0.4796691]
[1646293081416,0.22034241,43533.0,43524.0,0.05498905]
[1646293081617,0.22034241,43533.0,43525.0,0.32513178]
[1646293081816,0.22034241,43533.0,43524.0,0.05498905]
[1646293082417,0.05818685,43533.0,43525.0,0.05498905]
[1646293082673,0.05818685,43533.0,43526.0,0.32513178]
[1646293082674,0.00082317,43533.0,43526.0,0.32513178]
[1646293082871,0.00082317,43533.0,43528.0,0.21429597]
[1646293083176,0.00082317,43533.0,43529.0,0.32513178]
[1646293083370,0.00082317,43533.0,43530.0,0.35509]
[1646293084373,0.00082317,43533.0,43529.0,0.05498905]
[1646293084570,0.00091183,43534.0,43529.0,0.05498905]
[1646293084770,0.00091183,43534.0,43528.0,0.21429597]
[1646293085271,0.00091183,43534.0,43527.0,0.32375956]
[1646293085471,0.00091183,43534.0,43526.0,0.05498905]